fUST/lending_fUST_20241114
["ID","MTS","AMOUNT","RATE_DAILY","PERIOD"]
[342219603,1731595850022,-500.0,0.00017534,2]
[342219604,1731595850035,-500.0,0.00017534,2]
[342219605,1731595850044,-500.0,0.00017534,2]
[342219606,1731595850054,-500.0,0.00017534,2]
[342219607,1731595850064,-500.0,0.00017534,2]
[342219608,1731595850073,-335.54174542,0.00017534,2]
[342219609,1731595850087,-500.0,0.00017534,2]
[342219610,1731595850097,-500.0,0.00017534,2]
[342219611,1731595850109,-658.16,0.00017534,2]
[342219612,1731595850120,-1743.89,0.00017534,2]
[342219613,1731595850130,-675.85,0.00017534,2]
[342219614,1731595850140,-500.0,0.00017534,2]
[342219615,1731595850150,-500.0,0.00017534,2]
[342219616,1731595850159,-500.0,0.00017534,2]
[342219617,1731595850169,-1047.87,0.00017534,2]
[342219618,1731595850179,-500.0,0.00017534,2]
[342219619,1731595850190,-5272.88964446,0.00017534,2]
[342219620,1731595850235,-1372.14888174,0.00017534,2]
[342219621,1731595850277,-500.0,0.00016438,2]
[342219622,1731595850286,-500.0,0.00016438,2]
[342219623,1731595850295,-324.1421519,0.00016438,2]
[342219624,1731595850305,-500.0,0.00016712,2]
[342219625,1731595850314,-883.8678481,0.00017534,2]
[342219626,1731595850326,-431.01696856,0.00017534,2]
[342219627,1731595850342,-3408.55367389,0.00017534,2]
[342219628,1731595850354,-5836.20298325,0.00017534,2]
[342219629,1731595850364,-500.0,0.00017534,2]
[342219630,1731595850374,-500.0,0.00017534,2]
[342219631,1731595850385,-655.25,0.00017534,2]
[342219632,1731595850395,-500.0,0.00017534,2]
[342219633,1731595850405,-500.0,0.00017534,2]
[342219634,1731595850416,-500.0,0.00017534,2]
[342219635,1731595850426,-284.04875072,0.00017534,2]
[342219636,1731595850436,-903.09,0.00017534,2]
[342219637,1731595850445,-1587.39,0.00017534,2]
[342219638,1731595850455,-1574.22,0.00017534,2]
[342219639,1731595850465,-500.0,0.00017534,2]
[342219640,1731595850475,-500.0,0.00017534,2]
[342219641,1731595850484,-576.97,0.00017534,2]
[342219642,1731595850493,-1268.94,0.00017534,2]
[342219643,1731595850503,-500.0,0.00017534,2]
[342219644,1731595850513,-500.0,0.00017534,2]
[342219645,1731595850523,-500.0,0.00017534,2]
[342219646,1731595850532,-500.0,0.00017534,2]
[342219647,1731595850541,-500.0,0.00017534,2]
[342219648,1731595850551,-503.85,0.00017534,2]
[342219649,1731595850560,-500.0,0.00017534,2]
[342219650,1731595850569,-737.26,0.00017534,2]
[342219651,1731595850579,-780.54,0.00017534,2]
[342219652,1731595850592,-827.9,0.00017534,2]
[342219653,1731595850602,-1982.54,0.00017534,2]
[342219654,1731595850611,-500.0,0.00017534,2]
[342219655,1731595850620,-590.7,0.00017534,2]
[342219656,1731595850630,-2714.29,0.00017534,2]
[342219657,1731595850640,-1120.27,0.00017534,2]
[342219658,1731595850651,-1199.09,0.00017534,2]
[342219659,1731595850661,-510.29,0.00017534,2]
[342219660,1731595850670,-500.0,0.00017534,2]
[342219661,1731595850681,-500.0,0.00017534,2]
[342219662,1731595850690,-1077.2,0.00017534,2]
[342219663,1731595850699,-763.2,0.00017534,2]
[342219664,1731595850709,-691.77,0.00017534,2]
[342219665,1731595850719,-500.0,0.00017534,2]
[342219666,1731595850728,-500.0,0.00017534,2]
[342219667,1731595850737,-835.05,0.00017534,2]
[342219668,1731595850747,-529.13,0.00017534,2]
[342219669,1731595850757,-677.57,0.00017534,2]
[342219670,1731595850766,-2021.33,0.00017534,2]
[342219671,1731595850776,-500.0,0.00017534,2]
[342219672,1731595850785,-500.0,0.00017534,2]
[342219673,1731595850794,-500.0,0.00017534,2]
[342219674,1731595850803,-500.0,0.00017534,2]
[342219675,1731595850815,-604.58,0.00017534,2]
[342219676,1731595850824,-4593.36,0.00017534,2]
[342219677,1731595850837,-500.0,0.00017534,2]
[342219678,1731595850846,-399.12111962,0.00017534,2]
[342219679,1731595850855,-500.0,0.00017534,2]
[342219680,1731595850864,-500.0,0.00017534,2]
[342219681,1731595850874,-1328.77,0.00017534,2]
[342219682,1731595850883,-639.18,0.00017534,2]
[342219683,1731595850893,-832.04,0.00017534,2]
[342219684,1731595850903,-500.0,0.00017534,2]
[342219685,1731595850912,-867.76,0.00017534,2]
[342219686,1731595850922,-7208.99,0.00017534,2]
[342219687,1731595850931,-597.54,0.00017534,2]
[342219688,1731595850940,-629.54,0.00017534,2]
[342219689,1731595850950,-616.9,0.00017534,2]
[342219690,1731595850959,-500.0,0.00017534,2]
[342219691,1731595850968,-575.76,0.00017534,2]
[342219692,1731595850977,-642.4,0.00017534,2]
[342219693,1731595850986,-500.0,0.00017534,2]
[342219694,1731595850995,-497.80562905,0.00017534,2]
[342219695,1731595851005,-4383.45,0.00017534,2]
[342219696,1731595851015,-816.47,0.00017534,2]
[342219697,1731595851025,-500.0,0.00017534,2]
[342219698,1731595851034,-716.09,0.00017534,2]
[342219699,1731595851044,-500.0,0.00017534,2]
[342219700,1731595851054,-1455.19,0.00017534,2]
[342219701,1731595851063,-500.0,0.00017534,2]
[342219702,1731595851073,-1000.0,0.000176,2]
[342219703,1731595851086,-600.0,0.0001776,2]
[342219704,1731595851098,-1000.0,0.000178,2]
[342219705,1731595851107,-500.0,0.00017808,2]
[342219706,1731595851116,-500.0,0.00017808,2]
[342219707,1731595851126,-788.3,0.00017808,2]
[342219708,1731595851135,-500.0,0.00017808,2]
[342219709,1731595851145,-500.0,0.00017808,2]
[342219710,1731595851154,-500.0,0.00017808,2]
[342219711,1731595851164,-809.23,0.00017808,2]
[342219712,1731595851174,-500.0,0.00017808,2]
[342219713,1731595851183,-525.76,0.00017808,2]
[342219714,1731595851192,-581.69,0.00017808,2]
[342219715,1731595851202,-500.0,0.00017808,2]
[342219716,1731595851211,-500.0,0.00017808,2]
[342219717,1731595851221,-603.16015405,0.00017808,2]
[342219718,1731595851230,-500.0,0.00017808,2]
[342219719,1731595851239,-500.0,0.00017808,2]
[342219720,1731595851248,-500.0,0.00017808,2]
[342219721,1731595851257,-523.3,0.00017808,2]
[342219722,1731595851267,-1000.0,0.00017808,2]
[342219723,1731595851278,-500.0,0.00017808,2]
[342219724,1731595851287,-500.0,0.00017808,2]
[342219725,1731595851297,-500.0,0.00017808,2]
[342219726,1731595851306,-50.53572045,0.00017808,2]
[342219727,1731595851319,-788.63427955,0.00017808,2]
[342219728,1731595851329,-968.41,0.00017808,2]
[342219729,1731595851342,-614.57,0.00017808,2]
[342219730,1731595851352,-500.0,0.00017808,2]
[342219731,1731595851362,-541.69,0.00017808,2]
[342219732,1731595851372,-500.0,0.00017808,2]
[342219733,1731595851382,-500.0,0.00017808,2]
[342219734,1731595851392,-628.28,0.00017808,2]
[342219735,1731595851402,-622.52,0.00017808,2]
[342219736,1731595851412,-500.0,0.00017808,2]
[342219737,1731595851422,-500.0,0.00017808,2]
[342219738,1731595851432,-500.0,0.00017808,2]
[342219739,1731595851442,-646.04,0.00017808,2]
[342219740,1731595851451,-681.07,0.00017808,2]
[342219741,1731595851461,-500.0,0.00017808,2]
[342219742,1731595851471,-331.85375742,0.00017808,2]
[342219743,1731595851481,-500.0,0.00017808,2]
[342219744,1731595851491,-641.36,0.00017808,2]
[342219745,1731595851501,-500.0,0.00017808,2]
[342219746,1731595851510,-691.43,0.00017808,2]
[342219747,1731595851520,-647.8,0.00017808,2]
[342219748,1731595851530,-755.66,0.00017808,2]
[342219749,1731595851539,-501.49,0.00017808,2]
[342219750,1731595851550,-270.18490269,0.00017808,2]
[342219751,1731595851559,-905.77,0.00017808,2]
[342219752,1731595851569,-1145.47,0.00017808,2]
[342219753,1731595851579,-500.0,0.00017808,2]
[342219754,1731595851593,-500.0,0.00017808,2]
[342219755,1731595851602,-500.0,0.00017808,2]
[342219756,1731595851611,-843.03,0.00017808,2]
[342219757,1731595851620,-500.0,0.00017808,2]
[342219758,1731595851629,-541.75,0.00017808,2]
[342219759,1731595851639,-392.75840582,0.00017808,2]
[342219760,1731595851648,-500.0,0.00017808,2]
[342219761,1731595851658,-594.26,0.00017808,2]
[342219762,1731595851667,-441.65662075,0.00017808,2]
[342219763,1731595851927,-491.78598143,0.00016438,2]
[342219764,1731595851939,-8.21401857,0.00016438,2]
[342219765,1731595851948,-500.0,0.00016438,2]
[342219766,1731595851957,-500.0,0.00016438,2]
[342219767,1731595851966,-500.0,0.00016438,2]
[342219768,1731595851974,-500.0,0.00016438,2]
[342219769,1731595851983,-500.0,0.00016712,2]
[342219770,1731595851992,-500.0,0.00016712,2]
[342219771,1731595852001,-500.0,0.00016712,2]
[342219772,1731595852010,-500.0,0.00016712,2]
[342219773,1731595852019,-500.0,0.00016712,2]
[342219774,1731595852032,-305.74725891,0.00016973,2]
[342219775,1731595852041,-500.0,0.00016986,2]
[342219776,1731595852049,-500.0,0.00016986,2]
[342219777,1731595852058,-500.0,0.00016986,2]
[342219778,1731595852067,-500.0,0.00016986,2]
[342219779,1731595852078,-500.0,0.00016986,2]
[342219780,1731595852092,-501.91111301,0.0001726,2]
[342219781,1731595852101,-500.0,0.0001726,2]
[342219782,1731595852113,-58.34337925,0.00017808,2]
[342219783,1731595852122,-500.0,0.00017808,2]
[342219784,1731595852131,-533.4,0.00017808,2]
[342219785,1731595852140,-500.0,0.00017808,2]
[342219786,1731595852150,-582.28,0.00017808,2]
[342219787,1731595852159,-500.0,0.00017808,2]
[342219788,1731595852167,-500.0,0.00017808,2]
[342219789,1731595852177,-500.0,0.00017808,2]
[342219790,1731595852186,-716.7,0.00017808,2]
[342219791,1731595852195,-500.0,0.00017808,2]
[342219792,1731595852204,-500.0,0.00017808,2]
[342219793,1731595852213,-500.0,0.00017808,2]
[342219794,1731595852222,-2015.3,0.00017808,2]
[342219795,1731595852232,-500.0,0.00017808,2]
[342219796,1731595852241,-753.79,0.00017808,2]
[342219797,1731595852251,-746.97,0.00017808,2]
[342219798,1731595852260,-500.0,0.00017808,2]
[342219799,1731595852270,-638.18,0.00017808,2]
[342219800,1731595852279,-500.0,0.00017808,2]
[342219801,1731595852289,-708.71,0.00017808,2]
[342219802,1731595852298,-895.0,0.00017808,2]
[342219803,1731595852308,-1138.79,0.00017808,2]
[342219804,1731595852317,-500.0,0.00017808,2]
[342219805,1731595852327,-1401.03,0.00017808,2]
[342219806,1731595852342,-754.37,0.00017808,2]
[342219807,1731595852354,-500.0,0.00017808,2]
[342219808,1731595852364,-1257.03,0.00017808,2]
[342219809,1731595852373,-500.0,0.00017808,2]
[342219810,1731595852382,-500.0,0.00017808,2]
[342219811,1731595852391,-500.0,0.00017808,2]
[342219812,1731595852408,-500.0,0.00017808,2]
[342219813,1731595852419,-500.0,0.00017808,2]
[342219814,1731595852429,-500.0,0.00017808,2]
[342219815,1731595852438,-500.0,0.00017808,2]
[342219816,1731595852448,-500.0,0.00017808,2]
[342219817,1731595852457,-570.52981662,0.00017808,2]
[342219818,1731595852471,-87.63018338,0.00017808,2]
[342219819,1731595852480,-1743.89,0.00017808,2]
[342219820,1731595852489,-500.0,0.00017808,2]
[342219821,1731595852499,-500.0,0.00017808,2]
[342219822,1731595852508,-1047.87,0.00017808,2]
[342219823,1731595852518,-500.0,0.00017808,2]
[342219824,1731595852527,-17204.68,0.00017808,2]
[342219825,1731595852536,-627.90911261,0.00017808,2]
[342219826,1731595852546,-500.0,0.00017808,2]
[342219827,1731595852555,-655.25,0.00017808,2]
[342219828,1731595852564,-500.0,0.00017808,2]
[342219829,1731595852574,-324.78193951,0.00017808,2]
[342219830,1731595852591,-140.40465862,0.00017808,2]
[342219831,1731595852773,-500.0,0.00017808,2]
[342219832,1731595852783,-903.09,0.00017808,2]
[342219833,1731595852793,-1587.39,0.00017808,2]
[342219834,1731595852802,-1574.22,0.00017808,2]
[342219835,1731595852812,-500.0,0.00017808,2]
[342219836,1731595852822,-500.0,0.00017808,2]
[342219837,1731595852835,-576.97,0.00017808,2]
[342219838,1731595852845,-1268.94,0.00017808,2]
[342219839,1731595852854,-500.0,0.00017808,2]
[342219840,1731595852863,-500.0,0.00017808,2]
[342219841,1731595852873,-500.0,0.00017808,2]
[342219842,1731595852883,-500.0,0.00017808,2]
[342219843,1731595852892,-500.0,0.00017808,2]
[342219844,1731595852902,-503.85,0.00017808,2]
[342219845,1731595852912,-500.0,0.00017808,2]
[342219846,1731595852923,-737.26,0.00017808,2]
[342219847,1731595852933,-780.54,0.00017808,2]
[342219848,1731595852942,-827.9,0.00017808,2]
[342219849,1731595852952,-1982.54,0.00017808,2]
[342219850,1731595852961,-500.0,0.00017808,2]
[342219851,1731595852971,-590.7,0.00017808,2]
[342219852,1731595852980,-2714.29,0.00017808,2]
[342219853,1731595852990,-1120.27,0.00017808,2]
[342219854,1731595853000,-1199.09,0.00017808,2]
[342219855,1731595853009,-510.29,0.00017808,2]
[342219856,1731595853023,-500.0,0.00017808,2]
[342219857,1731595853033,-500.0,0.00017808,2]
[342219858,1731595853043,-1077.2,0.00017808,2]
[342219859,1731595853052,-763.2,0.00017808,2]
[342219860,1731595853064,-691.77,0.00017808,2]
[342219861,1731595853074,-500.0,0.00017808,2]
[342219862,1731595853088,-500.0,0.00017808,2]
[342219863,1731595853098,-835.05,0.00017808,2]
[342219864,1731595853108,-529.13,0.00017808,2]
[342219865,1731595853118,-677.57,0.00017808,2]
[342219866,1731595853127,-2021.33,0.00017808,2]
[342219867,1731595853137,-500.0,0.00017808,2]
[342219868,1731595853147,-500.0,0.00017808,2]
[342219869,1731595853157,-500.0,0.00017808,2]
[342219870,1731595853167,-500.0,0.00017808,2]
[342219871,1731595853176,-604.58,0.00017808,2]
[342219872,1731595853185,-4593.36,0.00017808,2]
[342219873,1731595853194,-500.0,0.00017808,2]
[342219874,1731595853204,-500.0,0.00017808,2]
[342219875,1731595853214,-500.0,0.00017808,2]
[342219876,1731595853223,-1328.77,0.00017808,2]
[342219877,1731595853234,-639.18,0.00017808,2]
[342219878,1731595853244,-832.04,0.00017808,2]
[342219879,1731595853253,-500.0,0.00017808,2]
[342219880,1731595853262,-867.76,0.00017808,2]
[342219881,1731595853272,-7208.99,0.00017808,2]
[342219882,1731595853282,-597.54,0.00017808,2]
[342219883,1731595853291,-629.54,0.00017808,2]
[342219884,1731595853300,-616.9,0.00017808,2]
[342219885,1731595853310,-460.35157877,0.00017808,2]
[342219886,1731595853323,-39.64842123,0.00017808,2]
[342219887,1731595853336,-575.76,0.00017808,2]
[342219888,1731595853346,-642.4,0.00017808,2]
[342219889,1731595853355,-500.0,0.00017808,2]
[342219890,1731595853365,-2818.17071271,0.00017808,2]
[342219891,1731595853377,-336.22628904,0.00017808,2]
[342219892,1731595853390,-1229.05299825,0.00017808,2]
[342219893,1731595853399,-816.47,0.00017808,2]
[342219894,1731595853409,-500.0,0.00017808,2]
[342219895,1731595853419,-716.09,0.00017808,2]
[342219896,1731595853428,-500.0,0.00017808,2]
[342219897,1731595853437,-1455.19,0.00017808,2]
[342219898,1731595853447,-500.0,0.00017808,2]
[342219899,1731595853457,-151.0,0.00017808,2]
[342219900,1731595853467,-151.0,0.00017808,2]
[342219901,1731595853477,-151.0,0.00017808,2]
[342219902,1731595853487,-151.0,0.00017808,2]
[342219903,1731595853497,-288.468121,0.00017808,2]
[342219904,1731595853507,-499.999999,0.00017852,2]
[342219905,1731595853516,-1000.0,0.00017888,2]
[342219906,1731595853526,-587.0,0.00017971,2]
[342219907,1731595853535,-29684.14569524,0.00018,3]
[342219908,1731595853546,-896.691074,0.00018,2]
[342219909,1731595853555,-500.0,0.00018082,2]
[342219910,1731595853565,-500.0,0.00018082,2]
[342219911,1731595853575,-788.3,0.00018082,2]
[342219912,1731595853589,-500.0,0.00018082,2]
[342219913,1731595853599,-500.0,0.00018082,2]
[342219914,1731595853608,-500.0,0.00018082,2]
[342219915,1731595853618,-809.23,0.00018082,2]
[342219916,1731595853627,-500.0,0.00018082,2]
[342219917,1731595853637,-525.76,0.00018082,2]
[342219918,1731595853647,-581.69,0.00018082,2]
[342219919,1731595853657,-500.0,0.00018082,2]
[342219920,1731595853666,-500.0,0.00018082,2]
[342219921,1731595853676,-500.0,0.00018082,2]
[342219922,1731595853685,-500.0,0.00018082,2]
[342219923,1731595853695,-500.0,0.00018082,2]
[342219924,1731595853704,-523.3,0.00018082,2]
[342219925,1731595853713,-1000.0,0.00018082,2]
[342219926,1731595853723,-500.0,0.00018082,2]
[342219927,1731595853732,-500.0,0.00018082,2]
[342219928,1731595853742,-500.0,0.00018082,2]
[342219929,1731595853752,-839.17,0.00018082,2]
[342219930,1731595853761,-968.41,0.00018082,2]
[342219931,1731595853771,-614.57,0.00018082,2]
[342219932,1731595853781,-500.0,0.00018082,2]
[342219933,1731595853790,-541.69,0.00018082,2]
[342219934,1731595853800,-500.0,0.00018082,2]
[342219935,1731595853809,-500.0,0.00018082,2]
[342219936,1731595853818,-628.28,0.00018082,2]
[342219937,1731595853828,-622.52,0.00018082,2]
[342219938,1731595853841,-500.0,0.00018082,2]
[342219939,1731595853851,-500.0,0.00018082,2]
[342219940,1731595853860,-500.0,0.00018082,2]
[342219941,1731595853869,-646.04,0.00018082,2]
[342219942,1731595853879,-681.07,0.00018082,2]
[342219943,1731595853889,-500.0,0.00018082,2]
[342219944,1731595853898,-500.0,0.00018082,2]
[342219945,1731595853907,-641.36,0.00018082,2]
[342219946,1731595853917,-500.0,0.00018082,2]
[342219947,1731595853926,-691.43,0.00018082,2]
[342219948,1731595853936,-647.8,0.00018082,2]
[342219949,1731595853945,-755.66,0.00018082,2]
[342219950,1731595853955,-501.49,0.00018082,2]
[342219951,1731595853965,-905.77,0.00018082,2]
[342219952,1731595853974,-1145.47,0.00018082,2]
[342219953,1731595853984,-500.0,0.00018082,2]
[342219954,1731595853993,-500.0,0.00018082,2]
[342219955,1731595854002,-500.0,0.00018082,2]
[342219956,1731595854012,-843.03,0.00018082,2]
[342219957,1731595854021,-500.0,0.00018082,2]
[342219958,1731595854034,-541.75,0.00018082,2]
[342219959,1731595854044,-594.26,0.00018082,2]
[342219960,1731595854054,-500.0,0.00018082,2]
[342219961,1731595854063,-500.0,0.00018082,2]
[342219962,1731595854073,-500.0,0.00018082,2]
[342219963,1731595854085,-533.4,0.00018082,2]
[342219964,1731595854094,-500.0,0.00018082,2]
[342219965,1731595854106,-582.28,0.00018082,2]
[342219966,1731595854116,-500.0,0.00018082,2]
[342219967,1731595854126,-500.0,0.00018082,2]
[342219968,1731595854136,-500.0,0.00018082,2]
[342219969,1731595854146,-716.7,0.00018082,2]
[342219970,1731595854156,-500.0,0.00018082,2]
[342219971,1731595854165,-500.0,0.00018082,2]
[342219972,1731595854175,-500.0,0.00018082,2]
[342219973,1731595854186,-2015.3,0.00018082,2]
[342219974,1731595854195,-500.0,0.00018082,2]
[342219975,1731595854205,-753.79,0.00018082,2]
[342219976,1731595854214,-746.97,0.00018082,2]
[342219977,1731595854224,-500.0,0.00018082,2]
[342219978,1731595854233,-638.18,0.00018082,2]
[342219979,1731595854243,-500.0,0.00018082,2]
[342219980,1731595854252,-708.71,0.00018082,2]
[342219981,1731595854261,-895.0,0.00018082,2]
[342219982,1731595854271,-1138.79,0.00018082,2]
[342219983,1731595854281,-500.0,0.00018082,2]
[342219984,1731595854290,-1401.03,0.00018082,2]
[342219985,1731595854300,-754.37,0.00018082,2]
[342219986,1731595854309,-500.0,0.00018082,2]
[342219987,1731595854318,-1257.03,0.00018082,2]
[342219988,1731595854327,-500.0,0.00018082,2]
[342219989,1731595854341,-500.0,0.00018082,2]
[342219990,1731595854350,-500.0,0.00018082,2]
[342219991,1731595854359,-500.0,0.00018082,2]
[342219992,1731595854368,-500.0,0.00018082,2]
[342219993,1731595854378,-500.0,0.00018082,2]
[342219994,1731595854387,-553.72032412,0.00018082,2]
[342219995,1731595854397,-500.0,0.00018082,2]
[342219996,1731595854406,-658.16,0.00018082,2]
[342219997,1731595854416,-1743.89,0.00018082,2]
[342219998,1731595854425,-500.0,0.00018082,2]
[342219999,1731595854434,-500.0,0.00018082,2]
[342220000,1731595854444,-1047.87,0.00018082,2]
[342220001,1731595854453,-500.0,0.00018082,2]
[342220002,1731595854463,-17204.68,0.00018082,2]
[342220003,1731595854472,-500.0,0.00018082,2]
[342220004,1731595854482,-655.25,0.00018082,2]
[342220005,1731595854491,-113.24483768,0.00018082,2]
[342220006,1731595854505,-386.75516232,0.00018082,2]
[342220007,1731595854515,-500.0,0.00018082,2]
[342220008,1731595854525,-903.09,0.00018082,2]
[342220009,1731595854534,-1587.39,0.00018082,2]
[342220010,1731595854544,-1574.22,0.00018082,2]
[342220011,1731595854553,-500.0,0.00018082,2]
[342220012,1731595854567,-500.0,0.00018082,2]
[342220013,1731595854577,-576.97,0.00018082,2]
[342220014,1731595854591,-1268.94,0.00018082,2]
[342220015,1731595854600,-500.0,0.00018082,2]
[342220016,1731595854609,-500.0,0.00018082,2]
[342220017,1731595854618,-500.0,0.00018082,2]
[342220018,1731595854628,-500.0,0.00018082,2]
[342220019,1731595854638,-500.0,0.00018082,2]
[342220020,1731595854647,-503.85,0.00018082,2]
[342220021,1731595854656,-737.26,0.00018082,2]
[342220022,1731595854666,-780.54,0.00018082,2]
[342220023,1731595854676,-167.3636,0.00018082,2]
[342220024,1731595854686,-827.9,0.00018082,2]
[342220025,1731595854699,-1982.54,0.00018082,2]
[342220026,1731595854708,-500.0,0.00018082,2]
[342220027,1731595854718,-590.7,0.00018082,2]
[342220028,1731595854727,-1682.48123768,0.00018082,2]
[342220029,1731595854741,-1031.80876232,0.00018082,2]
[342220030,1731595854751,-1120.27,0.00018082,2]
[342220031,1731595854761,-1199.09,0.00018082,2]
[342220032,1731595854771,-510.29,0.00018082,2]
[342220033,1731595854781,-500.0,0.00018082,2]
[342220034,1731595854790,-500.0,0.00018082,2]
[342220035,1731595854799,-1077.2,0.00018082,2]
[342220036,1731595854810,-763.2,0.00018082,2]
[342220037,1731595854819,-691.77,0.00018082,2]
[342220038,1731595854828,-500.0,0.00018082,2]
[342220039,1731595854841,-500.0,0.00018082,2]
[342220040,1731595854851,-835.05,0.00018082,2]
[342220041,1731595854860,-529.13,0.00018082,2]
[342220042,1731595854870,-677.57,0.00018082,2]
[342220043,1731595854879,-1829.63021181,0.00018082,2]
[342220044,1731595854944,-500.0,0.00016438,2]
[342220045,1731595854953,-524.86617161,0.00016438,2]
[342220046,1731595854963,-506.73856517,0.00016438,2]
[342220047,1731595854972,-500.0,0.00016712,2]
[342220048,1731595854982,-503.50651808,0.00016986,2]
[342220049,1731595854991,-500.0,0.00016986,2]
[342220050,1731595855001,-483.10874514,0.00017534,2]
[342220051,1731595855044,-45.53125486,0.00017534,2]
[342220052,1731595855054,-191.69978819,0.00018082,2]
[342220053,1731595855063,-14.23609087,0.00018082,2]
[342220054,1731595855076,-485.76390913,0.00018082,2]
[342220055,1731595855089,-500.0,0.00018082,2]
[342220056,1731595855099,-555.20818355,0.00018082,2]
[342220057,1731595855111,-500.0,0.00018082,2]
[342220058,1731595855120,-604.58,0.00018082,2]
[342220059,1731595855129,-2515.44790732,0.00018082,2]
[342220060,1731595855140,-447.065,0.00018082,2]
[342220061,1731595855263,-650.92751539,0.00018082,2]
[342220062,1731595855274,-979.91957729,0.00018082,2]
[342220063,1731595855283,-41.63699336,0.00018082,2]
[342220064,1731595857558,348.04,0.00010959,2]
[342220075,1731596303434,254.1646,0.00027,60]
[342220130,1731596879227,215.62,0.0001107,2]
[342220170,1731597034981,-197.85325406,0.00013873,2]
[342220171,1731597034991,-500.0,0.00013873,2]
[342220172,1731597035001,-500.0,0.00013873,2]
[342220173,1731597035010,-500.0,0.00013873,2]
[342220174,1731597035020,-211.97398315,0.00013873,2]
[342220175,1731597035030,-400.0,0.00013973,2]
[342220176,1731597035039,-159.5951741,0.00014882,2]
[342220177,1731597035049,-16327.41704709,0.00014882,2]
[342220178,1731597035060,-2191.42,0.00014882,2]
[342220179,1731597035076,-797.78180882,0.00014882,2]
[342220180,1731597035088,-386.99994,0.00014882,2]
[342220181,1731597035258,-886.1,0.00014882,2]
[342220182,1731597035299,-4310.28120409,0.00014882,2]
[342220183,1731597035309,-300.0,0.00015208,2]
[342220184,1731597035318,-242.5347501,0.00015215,2]
[342220185,1731597035327,-201.57267244,0.00016238,2]
[342220186,1731597035337,-3705.9122799,0.00016338,2]
[342220187,1731597035347,-3705.91227988,0.00016407,2]
[342220188,1731597035357,-499.00000065,0.00016436,2]
[342220189,1731597035367,-652.70265673,0.00016437,2]
[342220190,1731597035376,-500.0,0.00016437,2]
[342220191,1731597035386,-500.0,0.00016437,2]
[342220192,1731597035396,-328.8617166,0.00016437,2]
[342220193,1731597035407,-500.0,0.00016437,2]
[342220194,1731597035423,-500.0,0.00016437,2]
[342220195,1731597035432,-500.0,0.00016437,2]
[342220196,1731597035442,-500.0,0.00016437,2]
[342220197,1731597035451,-380.36612373,0.00016437,2]
[342220198,1731597035463,-500.0,0.00016437,2]
[342220199,1731597035474,-606.56893781,0.00016437,2]
[342220200,1731597035483,-500.0,0.00016437,2]
[342220201,1731597035493,-500.0,0.00016437,2]
[342220202,1731597035503,-500.0,0.00016437,2]
[342220203,1731597035512,-117.87078573,0.00016437,2]
[342220258,1731597038628,-382.12921427,0.00016437,2]
[342220259,1731597038638,-500.0,0.00016437,2]